bitfinex/quotes_BTCUSD_20251007
["timestamp","ask_amount","ask_price","bid_price","bid_amount"]
[1759853155663,1.07449415,121670.0,121660.0,0.00242573]
[1759853155865,1.59559621,121670.0,121660.0,0.09126573]
[1759853156203,0.90956266,121670.0,121660.0,0.09126573]
[1759853157312,0.86692111,121670.0,121660.0,0.09126573]
[1759853157517,0.86692111,121670.0,121660.0,0.00242573]
[1759853157730,0.86692111,121670.0,121660.0,0.21434573]
[1759853158070,1.55795466,121670.0,121660.0,0.32682573]
[1759853158683,0.86692111,121670.0,121660.0,0.00242573]
[1759853158882,0.94691791,121670.0,121660.0,0.10862573]
[1759853159084,0.94391791,121670.0,121660.0,0.10862573]
[1759853159522,1.62995146,121670.0,121660.0,0.10862573]
[1759853159729,1.63395146,121670.0,121660.0,0.27738573]
[1759853159949,1.63395146,121670.0,121660.0,0.03842573]
[1759853160094,1.63395146,121670.0,121660.0,0.27738573]
[1759853160300,0.50439256,121660.0,121650.0,0.0004]
[1759853160524,1.45932374,121660.0,121650.0,0.1438]
[1759853160721,0.90225019,121660.0,121650.0,0.1438]
[1759853160946,0.90225019,121660.0,121650.0,0.0004]
[1759853161165,1.59328374,121660.0,121650.0,0.29572]
[1759853161816,1.59628374,121660.0,121650.0,0.24628]
[1759853161985,1.59228374,121660.0,121650.0,0.3248]
[1759853162143,0.90125019,121660.0,121650.0,0.3248]
[1759853162345,1.59628374,121660.0,121650.0,0.3608]
[1759853163168,0.90525019,121660.0,121650.0,0.3608]
[1759853163622,0.91025019,121660.0,121650.0,0.0374]
[1759853163834,1.60128374,121660.0,121650.0,0.36176]
[1759853165359,0.91025019,121660.0,121650.0,0.36176]
[1759853165622,1.60128374,121660.0,121650.0,0.36176]
[1759853166271,0.91025019,121660.0,121650.0,0.36176]
[1759853166446,1.60128374,121660.0,121650.0,0.36176]
[1759853167190,1.60128374,121660.0,121650.0,0.36172]
[1759853168028,1.60128374,121660.0,121650.0,0.27628]
[1759853168212,1.60128374,121660.0,121650.0,0.36172]
[1759853168449,0.91025019,121660.0,121650.0,0.36172]
[1759853168594,1.60128374,121660.0,121650.0,0.0374]
[1759853168808,1.60128374,121660.0,121650.0,0.16996]
[1759853169019,1.60128374,121660.0,121650.0,0.12284]
[1759853169187,1.60128374,121660.0,121650.0,0.36172]
[1759853170029,1.60128374,121660.0,121650.0,0.27628]
[1759853170494,1.60128374,121660.0,121650.0,0.0374]
[1759853170704,1.60128374,121660.0,121650.0,0.27628]
[1759853171137,1.60128374,121660.0,121650.0,0.27679295]
[1759853171423,0.91025019,121660.0,121650.0,0.27679295]
[1759853171651,1.60128374,121660.0,121650.0,0.27784337]
[1759853173092,1.60128374,121660.0,121650.0,0.27784337]
[1759853173708,1.60128374,121660.0,121650.0,0.36324337]
[1759853174120,0.91025019,121660.0,121650.0,0.36324337]
[1759853174318,1.60128374,121660.0,121650.0,0.36324337]
[1759853174536,0.91025019,121660.0,121650.0,0.36324337]
[1759853174729,1.60128374,121660.0,121650.0,0.36324337]
[1759853175157,2.12716561,121660.0,121650.0,0.36324337]
[1759853177103,0.91025019,121660.0,121650.0,0.36324337]
[1759853177449,2.12716561,121660.0,121650.0,0.36324337]
[1759853177858,1.5187079,121660.0,121650.0,0.36324337]
[1759853178468,0.91025019,121660.0,121650.0,0.36324337]
[1759853178697,0.68867256,121660.0,121650.0,0.36324337]
[1759853178917,0.77049256,121660.0,121650.0,0.36324337]
[1759853179141,0.17139256,121660.0,121650.0,0.36324337]
[1759853179356,0.17139256,121660.0,121650.0,0.52764945]
[1759853180013,0.16639256,121660.0,121650.0,0.52664945]
[1759853180235,0.16939256,121660.0,121650.0,0.52764945]
[1759853180451,0.16539256,121660.0,121650.0,0.49164945]
[1759853180668,0.006,121660.0,121650.0,0.58477151]
[1759853180873,0.003,121660.0,121650.0,0.58377151]
[1759853181096,0.16523708,121670.0,121660.0,0.16439256]
[1759853181417,0.20209626,121670.0,121660.0,0.16439256]
[1759853181835,0.16523708,121670.0,121650.0,0.58877151]
[1759853182054,0.16523708,121670.0,121660.0,0.16439256]
[1759853182242,0.16523708,121670.0,121650.0,0.57377151]
[1759853182812,0.001,121660.0,121650.0,0.57377151]
[1759853183033,0.17223708,121670.0,121660.0,0.16539256]
[1759853183473,0.17223708,121670.0,121660.0,0.24851462]
[1759853183683,0.17323708,121670.0,121660.0,0.24851462]
[1759853183907,0.20400708,121670.0,121660.0,0.75004206]
[1759853184127,0.16523708,121670.0,121660.0,0.91343462]
[1759853184353,0.00085803,121670.0,121660.0,0.91343462]
[1759853184628,0.01185803,121670.0,121660.0,1.53010642]
[1759853184828,0.00285803,121670.0,121660.0,1.53010642]
[1759853185042,0.01385803,121670.0,121660.0,1.53206642]
[1759853185692,0.01385803,121670.0,121660.0,1.87206642]
[1759853186507,0.01185803,121670.0,121660.0,1.87206642]
[1759853186717,0.01185803,121670.0,121660.0,1.20618642]
[1759853186918,0.01185803,121670.0,121660.0,1.20918642]
[1759853187116,0.00085803,121670.0,121660.0,2.21482642]
[1759853187338,0.00085803,121670.0,121660.0,2.21478642]
[1759853187552,0.00085803,121670.0,121660.0,1.96022442]
[1759853187774,0.00785803,121670.0,121660.0,1.91892462]
[1759853187950,0.00785803,121670.0,121660.0,1.25308462]
[1759853188353,0.17223708,121670.0,121660.0,0.59151462]
[1759853188593,0.16523708,121670.0,121660.0,0.99206303]
[1759853188896,0.17423708,121670.0,121660.0,0.91427462]
[1759853189097,0.16523708,121670.0,121660.0,0.24951462]
[1759853189271,0.16523708,121670.0,121660.0,0.91523462]
[1759853189790,0.16523708,121670.0,121660.0,0.91323462]
[1759853189966,0.00085803,121670.0,121660.0,0.91323462]
[1759853190419,0.01285803,121670.0,121660.0,0.91423462]
[1759853190619,0.00085803,121670.0,121660.0,0.91323462]
[1759853190840,0.16523708,121670.0,121660.0,0.32751142]
[1759853191058,0.17923708,121670.0,121660.0,0.99603142]
[1759853191704,0.17923708,121670.0,121660.0,0.33031142]
[1759853191974,0.17923708,121670.0,121660.0,0.99603142]
[1759853192447,0.17923708,121670.0,121660.0,0.56887142]
[1759853192663,0.17923708,121670.0,121660.0,0.91599462]
[1759853193542,0.01485803,121670.0,121660.0,0.91599462]
[1759853193760,0.17923708,121670.0,121660.0,0.91599462]
[1759853193981,0.17923708,121670.0,121660.0,0.25031462]
[1759853194196,0.17923708,121670.0,121660.0,0.91595462]
[1759853194411,0.17923708,121670.0,121660.0,0.16591886]
[1759853194626,0.26490708,121670.0,121660.0,0.75156206]
[1759853194916,0.17923708,121670.0,121660.0,0.91595462]
[1759853195735,0.17923708,121670.0,121660.0,0.91591462]
[1759853196359,0.01485803,121670.0,121660.0,0.91591462]
[1759853196722,0.17923708,121670.0,121660.0,0.91591462]
[1759853196987,0.01485803,121670.0,121660.0,0.99591142]
[1759853198381,0.01485803,121670.0,121660.0,1.85614542]
[1759853198616,0.01485803,121670.0,121660.0,1.82475942]
[1759853198829,0.01485803,121670.0,121660.0,1.62189042]
[1759853199265,0.01485803,121670.0,121660.0,0.16591886]
[1759853199602,0.43400708,121670.0,121660.0,0.42988]
[1759853199829,0.43400708,121670.0,121660.0,0.66836]
[1759853200324,0.35439708,121670.0,121660.0,0.66836]
[1759853201714,0.29249708,121670.0,121660.0,0.66836]
[1759853201946,0.17923708,121670.0,121660.0,0.83275256]
[1759853202401,0.01485803,121670.0,121660.0,0.91587462]
[1759853202883,0.01485803,121670.0,121660.0,2.24566742]
[1759853203344,0.01485803,121670.0,121660.0,2.16368342]
[1759853203931,0.01485803,121670.0,121660.0,1.67373086]
[1759853204127,0.43400708,121670.0,121660.0,0.0882]
[1759853204339,1.71488331,121670.0,121660.0,0.0882]
[1759853204565,1.79800537,121670.0,121660.0,0.0028]
[1759853204786,1.92411588,121670.0,121660.0,0.0008]
[1759853205009,0.50439256,121660.0,121650.0,1e-08]
[1759853205238,0.16443311,121630.0,121620.0,0.0005]
[1759853205458,1.24064495,121630.0,121620.0,0.09606]
[1759853205672,0.50244872,121630.0,121620.0,0.09606]
[1759853205884,0.41732666,121630.0,121620.0,0.09606]
[1759853206104,0.19181666,121630.0,121620.0,0.105666]
[1759853206352,0.00012355,121630.0,121620.0,0.105666]
[1759853206579,0.16455666,121630.0,121620.0,0.18878806]
[1759853207064,0.00012355,121630.0,121620.0,0.18878806]
[1759853207306,0.16455666,121630.0,121620.0,0.18878806]
[1759853207557,0.18155666,121630.0,121620.0,0.09622806]
[1759853207737,0.18755666,121630.0,121620.0,0.33562806]
[1759853208028,0.18755666,121630.0,121620.0,0.76274806]
[1759853208250,0.16455666,121630.0,121620.0,0.92319469]
[1759853208472,0.01612355,121630.0,121620.0,0.92619469]
[1759853210272,0.01612355,121630.0,121620.0,2.03111269]
[1759853210467,0.01612355,121630.0,121620.0,0.92834869]
[1759853210677,0.01612355,121630.0,121620.0,1.08897569]
[1759853210895,0.01612355,121630.0,121620.0,1.03181498]
[1759853212439,0.01612355,121630.0,121620.0,0.26221398]
[1759853212674,0.18055666,121630.0,121620.0,0.60397398]
[1759853212905,0.18055666,121630.0,121620.0,0.26221398]
[1759853213146,0.18055666,121630.0,121620.0,0.43223929]
[1759853213147,0.26290666,121630.0,121620.0,0.43223929]
[1759853213378,0.43532666,121630.0,121620.0,0.00503929]
[1759853213611,0.43532666,121630.0,121620.0,0.25755929]
[1759853214349,0.77532666,121630.0,121620.0,0.25755929]
[1759853214576,0.69571666,121630.0,121620.0,0.33393723]
[1759853215150,0.52055666,121630.0,121620.0,0.33393723]
[1759853215433,0.52055666,121630.0,121620.0,0.25755929]
[1759853215640,0.18055666,121630.0,121620.0,0.25755929]
[1759853215910,0.01612355,121630.0,121620.0,0.50512798]
[1759853216116,0.18055666,121630.0,121620.0,0.34068135]
[1759853216328,0.4698243,121630.0,121620.0,0.09047929]
[1759853216531,0.4698243,121630.0,121620.0,0.32887929]
[1759853216760,0.29381666,121630.0,121620.0,0.32887929]
[1759853216994,0.35571666,121630.0,121620.0,0.32887929]
[1759853217200,0.29381666,121630.0,121620.0,0.32887929]
[1759853218750,0.29381666,121630.0,121620.0,0.00503929]
[1759853218994,0.77532666,121630.0,121620.0,0.00503929]
[1759853219229,1.79619969,121630.0,121620.0,0.12011929]
[1759853219679,0.85532346,121630.0,121620.0,0.12011929]
[1759853220503,0.85532346,121630.0,121620.0,0.00503929]
[1759853220768,1.79619969,121630.0,121620.0,0.00503929]
[1759853220966,1.79619969,121630.0,121620.0,0.12007929]
[1759853220967,0.85532346,121630.0,121620.0,0.12007929]
[1759853222693,0.85532346,121630.0,121620.0,0.00503929]
[1759853222913,1.79619969,121630.0,121620.0,0.00503929]
[1759853223166,1.87932175,121630.0,121620.0,0.09047929]
[1759853223377,1.87932175,121630.0,121620.0,0.00503929]
[1759853223577,1.87932175,121630.0,121620.0,0.02535929]
[1759853224887,1.87932175,121630.0,121580.0,0.34224]
[1759853224888,0.16448721,121590.0,121580.0,0.34224]
[1759853225147,0.5373833,121590.0,121580.0,0.54328]
[1759853225380,1.47825953,121590.0,121580.0,0.54328]
[1759853225611,0.7870233,121590.0,121580.0,0.54328]
[1759853226065,0.7870233,121590.0,121580.0,0.54378286]
[1759853226066,0.7860233,121590.0,121580.0,0.54378286]
[1759853226731,0.67811721,121590.0,121580.0,0.54378286]
[1759853226993,0.54714721,121590.0,121580.0,0.54778286]
[1759853227222,0.58860721,121590.0,121580.0,0.54478286]
[1759853227453,0.59860721,121590.0,121580.0,0.54778286]
[1759853227683,0.62871721,121590.0,121580.0,0.54778286]
[1759853227901,0.59860721,121590.0,121580.0,0.54778286]
[1759853228122,0.79133278,121590.0,121580.0,0.54778286]
[1759853228354,0.82176278,121590.0,121580.0,0.54778286]
[1759853228577,0.51548721,121590.0,121580.0,0.01295653]
[1759853228795,0.59860721,121590.0,121580.0,0.67863653]
[1759853229025,0.62871721,121590.0,121580.0,0.67058286]
[1759853229245,0.62871721,121590.0,121580.0,0.24326286]
[1759853229465,0.70871401,121590.0,121580.0,0.00490286]
[1759853229687,0.70871401,121590.0,121580.0,0.32870286]
[1759853229915,0.352,121590.0,121580.0,0.41584774]
[1759853230139,0.51648721,121590.0,121580.0,0.84316774]
[1759853230363,0.352,121590.0,121580.0,0.84316774]
[1759853230617,0.012,121590.0,121580.0,0.92834311]
[1759853234798,0.17648721,121590.0,121580.0,0.92834311]
[1759853235686,0.012,121590.0,121580.0,0.92834311]
[1759853236087,0.17648721,121590.0,121580.0,0.92834311]
[1759853236292,0.17648721,121590.0,121580.0,0.76380237]
[1759853236704,0.25960721,121590.0,121580.0,0.09816237]
[1759853237044,0.22794721,121590.0,121580.0,0.09816237]
[1759853237267,0.17648721,121590.0,121580.0,0.76380237]
[1759853238117,0.012,121590.0,121580.0,0.92830311]
[1759853238781,0.17648721,121590.0,121580.0,0.92830311]
[1759853239425,0.17648721,121590.0,121580.0,0.92021897]
[1759853239656,0.17648721,121590.0,121580.0,0.75571823]
[1759853239867,0.25960721,121590.0,121580.0,0.75571823]
[1759853240067,0.20814721,121590.0,121580.0,0.09007823]
[1759853240276,0.30201539,121590.0,121580.0,0.75567823]
[1759853240697,0.25055539,121590.0,121580.0,0.75567823]
[1759853240847,0.17648721,121590.0,121580.0,0.75567823]
[1759853241070,0.25960721,121590.0,121580.0,0.75567823]
[1759853241441,0.25960721,121590.0,121580.0,0.00695617]
[1759853241644,0.28971721,121590.0,121580.0,0.00695617]
[1759853241870,0.34263739,121590.0,121580.0,0.61183617]
[1759853242070,0.26106739,121590.0,121580.0,0.61183617]
[1759853242282,0.31252739,121590.0,121580.0,0.61183617]
[1759853242526,0.25960721,121590.0,121580.0,0.61183617]
[1759853242732,0.76612721,121590.0,121580.0,0.09243617]
[1759853242940,0.76612721,121590.0,121580.0,0.33071617]
[1759853243159,0.76612721,121590.0,121580.0,0.00695617]
[1759853243376,0.84612401,121590.0,121580.0,0.33071617]
[1759853244184,0.83612401,121590.0,121580.0,0.32771617]
[1759853244580,0.84012401,121590.0,121580.0,0.33071617]
[1759853245437,0.83812401,121590.0,121580.0,0.32971617]
[1759853245658,0.84012401,121590.0,121580.0,0.33071617]
[1759853245876,0.84012401,121590.0,121580.0,0.00695617]
[1759853246177,0.83812401,121590.0,121580.0,0.32971617]
[1759853246389,0.84112401,121590.0,121580.0,0.33071617]
[1759853246602,0.84112401,121590.0,121580.0,0.33067617]
[1759853250373,0.84112401,121590.0,121580.0,0.00695617]
[1759853250584,0.84112401,121590.0,121580.0,0.33067617]
[1759853250792,0.76112721,121590.0,121580.0,0.33067617]
[1759853251682,1.84550694,121590.0,121580.0,1e-08]
[1759853251897,0.16455487,121540.0,121530.0,0.0004]
[1759853252114,0.16455487,121540.0,121530.0,0.08603077]
[1759853252366,0.24682449,121540.0,121530.0,0.00055077]
[1759853252625,0.40939487,121540.0,121530.0,0.00055077]
[1759853252851,1.3502711,121540.0,121530.0,0.26127077]
[1759853253068,1.70449956,121540.0,121530.0,0.24179077]
[1759853253291,1.70449956,121540.0,121530.0,0.32727077]
[1759853253292,0.76362333,121540.0,121530.0,0.32727077]
[1759853253517,1.69949956,121540.0,121530.0,0.00355077]
[1759853253736,1.70349956,121540.0,121530.0,0.32727077]
[1759853253958,0.83039167,121540.0,121530.0,0.32727077]
[1759853254187,0.50555487,121540.0,121530.0,0.32727077]
[1759853254414,0.58757487,121540.0,121530.0,0.32427077]
[1759853254853,0.58957487,121540.0,121530.0,0.32527077]
[1759853255503,0.51055487,121540.0,121530.0,0.32527077]
[1759853255733,0.61069049,121540.0,121530.0,0.32527077]
[1759853255965,0.54021487,121540.0,121530.0,0.32527077]
[1759853256220,0.58957487,121540.0,121530.0,0.32527077]
[1759853256673,0.51055487,121540.0,121530.0,0.32527077]
[1759853256890,0.58957487,121540.0,121530.0,0.32527077]
[1759853257113,1.77185143,121540.0,121530.0,0.32527077]
[1759853257337,1.77185143,121540.0,121530.0,0.23979077]
[1759853257550,1.77185143,121540.0,121530.0,0.0041189]
[1759853257763,1.77185143,121540.0,121530.0,0.3278389]
[1759853258190,1.77185143,121540.0,121530.0,0.0041189]
[1759853258419,1.77185143,121540.0,121530.0,0.3278389]
[1759853258639,1.69185463,121540.0,121530.0,0.0041189]
[1759853258869,1.69185463,121540.0,121530.0,0.3278389]
[1759853259080,0.7509784,121540.0,121530.0,0.1091589]
[1759853259506,1.44380193,121540.0,121530.0,0.1091589]
[1759853261541,1.44380193,121540.0,121530.0,0.3278389]
[1759853261743,0.8309752,121540.0,121530.0,0.3278389]
[1759853261897,1.52379873,121540.0,121530.0,0.3278389]
[1759853262825,0.8309752,121540.0,121530.0,0.0041189]
[1759853263029,1.52379873,121540.0,121530.0,0.0041189]
[1759853263211,1.52379873,121540.0,121500.0,0.00810903]
[1759853263429,0.62969038,121440.0,121430.0,0.14783504]
[1759853263681,0.87516038,121440.0,121430.0,0.03914384]
[1759853263911,2.26080744,121440.0,121430.0,0.11774384]
[1759853264147,2.26080744,121440.0,121430.0,0.12955822]
[1759853264387,2.26080744,121440.0,121430.0,0.25611822]
[1759853264632,1.56898391,121440.0,121430.0,0.33182384]
[1759853264848,1.63074279,121440.0,121430.0,0.33182384]
[1759853265056,0.86536926,121440.0,121430.0,0.00290384]
[1759853265282,1.62974279,121440.0,121430.0,0.12710384]
[1759853265490,1.62974279,121440.0,121430.0,0.34261422]
[1759853265689,0.67548926,121440.0,121430.0,0.34361422]
[1759853265897,0.29269038,121440.0,121430.0,0.34361422]
[1759853266118,0.29269038,121440.0,121430.0,0.83768778]
[1759853266119,0.128,121440.0,121430.0,0.83768778]
[1759853266316,0.003,121440.0,121430.0,1.03535984]
[1759853266548,0.007,121440.0,121430.0,0.8706559]
[1759853266751,0.107,121440.0,121430.0,0.39196584]
[1759853266999,0.107,121440.0,121430.0,1.06212584]
[1759853267000,0.104,121440.0,121430.0,1.06212584]
[1759853267419,0.106,121440.0,121430.0,0.92088984]
[1759853267887,0.106,121440.0,121430.0,0.24972984]
[1759853268102,0.27069038,121440.0,121430.0,0.92088984]
[1759853268286,0.106,121440.0,121430.0,0.92076984]
[1759853268749,0.27069038,121440.0,121430.0,0.92076984]
[1759853269214,0.106,121440.0,121430.0,0.92591135]
[1759853270778,0.006,121440.0,121430.0,0.92591135]
[1759853271002,0.006,121440.0,121430.0,2.62694335]
[1759853271229,0.006,121440.0,121430.0,2.96694335]
[1759853271663,0.006,121440.0,121430.0,3.30894335]
[1759853271850,0.006,121440.0,121430.0,3.38894015]
[1759853272069,0.004,121440.0,121430.0,3.38794015]
[1759853272333,0.1,121460.0,121450.0,0.16467682]
[1759853272562,0.1,121460.0,121450.0,0.49091888]
[1759853273037,0.19036749,121470.0,121460.0,0.16466326]
[1759853273272,0.1,121480.0,121470.0,0.1646497]
[1759853273515,0.16536749,121490.0,121480.0,0.66463615]
[1759853273795,0.16536749,121490.0,121480.0,0.58999821]
[1759853274453,0.06536749,121490.0,121480.0,0.59050205]
[1759853274674,0.16536749,121490.0,121480.0,0.59050205]
[1759853275350,0.1,121490.0,121480.0,0.59050205]
[1759853275582,0.28960953,121500.0,121480.0,0.59050205]
[1759853275803,0.106,121490.0,121480.0,0.59050205]
[1759853276021,0.106,121490.0,121480.0,0.91894205]
[1759853276236,0.006,121490.0,121480.0,0.91894205]
[1759853276456,0.009,121490.0,121480.0,0.92799156]
[1759853276728,0.003,121490.0,121480.0,0.92799156]
[1759853276957,0.003,121490.0,121480.0,2.20721636]
[1759853277173,0.003,121490.0,121480.0,1.59473136]
[1759853277412,0.003,121490.0,121480.0,1.56954936]
[1759853277647,0.29782564,121510.0,121500.0,0.16460905]
[1759853277867,0.29782564,121510.0,121500.0,0.49049111]
[1759853278304,0.29782564,121510.0,121500.0,0.24773111]
[1759853278765,0.29782564,121510.0,121500.0,0.91809111]
[1759853278972,0.125,121510.0,121500.0,0.83253111]
[1759853279216,0.2895955,121510.0,121500.0,0.83249111]
[1759853279458,0.2895955,121510.0,121500.0,0.91801111]
[1759853279898,0.125,121510.0,121500.0,0.91801111]
[1759853280125,0.2985955,121510.0,121500.0,0.24973111]
[1759853280362,0.2985955,121510.0,121500.0,0.83549111]
[1759853280601,0.60561509,121510.0,121500.0,0.33096]
[1759853280837,0.60561509,121510.0,121500.0,0.33112]
[1759853281759,0.60561509,121510.0,121500.0,0.003]
[1759853281992,0.4740755,121510.0,121500.0,0.33112]
[1759853282215,0.137,121510.0,121500.0,0.57885111]
[1759853282439,0.3015955,121510.0,121500.0,0.57885111]
[1759853282885,0.137,121510.0,121500.0,0.57885111]
[1759853283588,0.037,121510.0,121500.0,0.58039266]
[1759853283808,0.137,121510.0,121500.0,0.58039266]
[1759853284021,0.3015955,121510.0,121500.0,0.58039266]
[1759853284239,0.137,121510.0,121500.0,0.58039266]
[1759853284462,0.3015955,121510.0,121500.0,0.58039266]
[1759853284679,0.137,121510.0,121500.0,0.58039266]
[1759853285109,0.17002429,121510.0,121500.0,0.58039266]
[1759853285678,0.137,121510.0,121500.0,0.92243266]
[1759853286298,0.3015955,121510.0,121500.0,0.25227266]
[1759853286495,0.3817155,121510.0,121500.0,0.75766361]
[1759853286706,0.3302555,121510.0,121500.0,0.67214361]
[1759853286947,0.3302555,121510.0,121500.0,0.92227266]
[1759853287168,0.3817155,121510.0,121500.0,0.49451266]
[1759853287366,0.3817155,121510.0,121500.0,0.92223266]
[1759853289381,0.21712,121510.0,121500.0,0.92223266]
[1759853289808,0.137,121510.0,121500.0,0.92223266]
[1759853290251,0.037,121510.0,121500.0,0.92223266]
[1759853290453,0.137,121510.0,121500.0,0.92223266]
[1759853290931,0.012,121510.0,121500.0,0.92223266]
[1759853291157,0.012,121510.0,121500.0,1.00222946]
[1759853291379,0.012,121510.0,121500.0,1.33559346]
[1759853291842,0.012,121510.0,121500.0,1.25559666]
[1759853292048,0.012,121510.0,121500.0,1.59559666]
[1759853292959,0.003,121510.0,121500.0,1.59359666]
[1759853293176,0.00085922,121540.0,121530.0,0.16456841]
[1759853293400,0.00085922,121540.0,121530.0,1.15661047]
[1759853293834,0.00085922,121540.0,121530.0,0.37359047]
[1759853294054,0.10085922,121540.0,121530.0,0.91713047]
[1759853294269,0.00185922,121540.0,121530.0,0.92013047]
[1759853294522,0.10185922,121540.0,121530.0,0.25084136]
[1759853294742,0.10185922,121540.0,121530.0,0.92028136]
[1759853295171,0.00185922,121540.0,121530.0,0.92028136]
[1759853295387,0.10185922,121540.0,121530.0,0.92024136]
[1759853295616,0.00785922,121540.0,121530.0,0.92324136]
[1759853295842,0.00785922,121540.0,121530.0,0.33383816]
[1759853296074,0.00785922,121540.0,121530.0,0.92324136]
[1759853296523,0.00785922,121540.0,121530.0,1.94885936]
[1759853296738,0.00785922,121540.0,121530.0,2.28885936]
[1759853297207,0.00785922,121540.0,121530.0,2.28881936]
[1759853297875,0.00785922,121540.0,121530.0,1.61945936]
[1759853298088,0.00785922,121540.0,121530.0,2.71085616]
[1759853298556,0.00785922,121540.0,121530.0,1.69945616]
[1759853298796,0.00785922,121540.0,121530.0,2.67047116]
[1759853300532,0.00785922,121540.0,121530.0,1.65911116]
[1759853300746,0.00785922,121540.0,121530.0,2.67015116]
[1759853301207,0.00785922,121540.0,121530.0,1.65911116]
[1759853301432,0.00785922,121540.0,121530.0,2.67011116]
[1759853302112,0.06536749,121580.0,121570.0,0.16451427]
[1759853302397,0.06536749,121580.0,121570.0,0.57451633]
[1759853302648,0.16536749,121580.0,121570.0,0.57451633]
[1759853302915,0.06536749,121580.0,121570.0,0.58441545]
[1759853303178,0.06536749,121580.0,121570.0,0.26251362]
[1759853303440,0.06836749,121580.0,121570.0,0.93254451]
[1759853303696,0.019,121580.0,121570.0,0.93554451]
[1759853303920,0.019,121580.0,121570.0,1.70669951]
[1759853304590,0.019,121580.0,121570.0,1.27897951]
[1759853304801,0.019,121580.0,121570.0,1.70649951]
[1759853307451,0.019,121580.0,121570.0,2.04649951]
[1759853307918,0.02105393,121580.0,121570.0,2.04649951]
[1759853308374,0.02105393,121580.0,121570.0,2.04349951]
[1759853308375,0.00505393,121580.0,121570.0,2.04349951]
[1759853308594,0.00505393,121580.0,121570.0,2.04549951]
[1759853308812,0.01205393,121580.0,121570.0,2.04549951]
[1759853309032,0.00905393,121580.0,121570.0,0.90685051]
[1759853309261,0.01105393,121580.0,121570.0,0.60566451]
[1759853309479,0.01105393,121580.0,121570.0,1.42022051]
[1759853312820,0.00905393,121580.0,121570.0,1.41922051]
[1759853313041,0.00305393,121580.0,121570.0,1.41722051]
[1759853313259,0.00905393,121580.0,121570.0,1.41922051]
[1759853313950,1e-08,121580.0,121570.0,1.44937241]
[1759853314392,0.06536749,121620.0,121610.0,0.16446015]
[1759853314614,0.06536749,121620.0,121610.0,1.27700821]
[1759853314835,0.06536749,121620.0,121610.0,1.03976221]
[1759853315227,0.06536749,121620.0,121610.0,1.07824221]
[1759853316136,0.012,121620.0,121610.0,1.08124221]
[1759853316577,0.012,121620.0,121610.0,1.04009921]
[1759853316787,0.012,121620.0,121610.0,1.12009601]
[1759853317005,0.012,121620.0,121610.0,0.45221601]
[1759853317238,0.40862663,121620.0,121610.0,0.5103968]
[1759853317483,0.54506663,121620.0,121610.0,0.67072]
[1759853317912,0.46715663,121620.0,121610.0,0.67072]
[1759853318133,0.33119663,121620.0,121610.0,0.67072]
[1759853318350,0.32810646,121620.0,121610.0,0.7507168]
[1759853318546,0.13390983,121620.0,121610.0,0.99829901]
[1759853318809,0.29835646,121620.0,121610.0,0.99829901]
[1759853319443,0.27335646,121620.0,121610.0,0.99829901]
[1759853319654,0.29835646,121620.0,121610.0,0.99829901]
[1759853320073,0.30040939,121620.0,121610.0,0.99829901]
[1759853320504,0.11096276,121620.0,121610.0,0.99829901]
[1759853320707,0.01096276,121620.0,121610.0,0.99829901]
[1759853321418,0.01096276,121620.0,121610.0,1.10998901]
[1759853322080,0.01096276,121620.0,121610.0,1.44998901]
[1759853322303,0.01096276,121620.0,121610.0,1.70871221]
[1759853322304,0.00205293,121620.0,121610.0,1.70871221]
[1759853322510,0.00405293,121620.0,121610.0,1.70971221]
[1759853322766,0.00805293,121620.0,121610.0,1.71071221]
[1759853325148,0.00805293,121620.0,121610.0,1.77115772]
[1759853325360,0.0002,121640.0,121630.0,0.50443311]
[1759853325573,0.0002,121640.0,121630.0,5.82755517]
[1759853325798,0.06536749,121670.0,121660.0,0.16439256]
[1759853325998,0.06586911,121670.0,121660.0,0.91479462]
[1759853326431,0.16586911,121670.0,121660.0,0.91479462]
[1759853326640,0.16586911,121670.0,121660.0,0.92825673]
[1759853327029,0.10050162,121670.0,121660.0,0.92825673]
[1759853327285,0.10050162,121670.0,121660.0,0.9281388]
[1759853327934,0.00050162,121670.0,121660.0,0.9281388]
[1759853328177,0.00350162,121670.0,121660.0,3.3152548]
[1759853328398,0.00350162,121670.0,121660.0,3.1176248]
[1759853328633,0.00350162,121670.0,121660.0,2.5351648]
[1759853328865,0.00350162,121670.0,121660.0,1.5624978]
[1759853329138,0.00550162,121670.0,121660.0,1.5624978]
[1759853329361,0.00550162,121670.0,121660.0,1.5109398]
[1759853329591,0.00550162,121670.0,121660.0,1.51577505]
[1759853330307,0.00550162,121670.0,121660.0,1.49467405]
[1759853330740,0.00550162,121670.0,121660.0,1.42570605]
[1759853330956,0.00550162,121670.0,121660.0,1.27369405]
[1759853331083,0.00550162,121670.0,121660.0,1.27365405]
[1759853332979,0.00550162,121670.0,121660.0,1.27369405]
[1759853333183,0.27578067,121670.0,121660.0,0.08895731]
[1759853333401,0.27578067,121670.0,121660.0,0.67275525]
[1759853333402,0.54080067,121670.0,121660.0,0.67275525]
[1759853333833,0.54080067,121670.0,121660.0,0.001]
[1759853334063,1.48241749,121670.0,121660.0,0.32616]
[1759853334263,1.48241749,121670.0,121660.0,0.001]
[1759853334474,1.56553955,121670.0,121660.0,0.13916]
[1759853334909,1.90553955,121670.0,121660.0,0.0864]
[1759853335116,1.90553955,121670.0,121660.0,0.2448]
[1759853335607,1.91054969,121670.0,121660.0,0.2448]
[1759853335812,1.91054969,121670.0,121660.0,0.001]
[1759853336219,1.91054969,121670.0,121660.0,0.01888]
[1759853336440,1.99311116,121670.0,121660.0,0.01888]
[1759853338081,1.99311116,121670.0,121660.0,0.001]
[1759853338510,1.99311116,121670.0,121660.0,0.00772]
[1759853338930,1.05149434,121670.0,121660.0,0.00772]
[1759853339136,1.99311116,121670.0,121660.0,0.00772]
[1759853340019,0.88136534,121670.0,121660.0,0.00772]
[1759853340205,0.54136534,121670.0,121660.0,0.00772]
[1759853340441,0.47371534,121670.0,121660.0,0.00872]
[1759853340645,0.38334534,121670.0,121660.0,0.00872]
[1759853341071,0.51389534,121670.0,121660.0,0.00872]
[1759853341295,0.54264534,121670.0,121660.0,0.00872]
[1759853341536,0.16739629,121670.0,121660.0,0.19896868]
[1759853341820,0.54263534,121670.0,121660.0,0.00872]
[1759853342301,0.44135534,121670.0,121660.0,0.00872]
[1759853342529,0.30244534,121670.0,121660.0,0.25623462]
[1759853342965,0.33315534,121670.0,121660.0,0.25623462]
[1759853343377,0.33315534,121670.0,121660.0,0.09184206]
[1759853343581,0.33315534,121670.0,121660.0,0.25623462]
[1759853343796,0.30244534,121670.0,121660.0,0.25623462]
[1759853344002,0.33315534,121670.0,121660.0,0.09184206]
[1759853345596,0.54263534,121670.0,121660.0,0.002]
[1759853345796,0.47028534,121670.0,121660.0,0.66876]